fUST/lending_fUST_20250828
["ID","MTS","AMOUNT","RATE_DAILY","PERIOD"]
[381850596,1756369866195,-1500.0,0.00020268,2]
[381850597,1756369866205,-1500.0,0.00020268,2]
[381850598,1756369866215,-332.27954556,0.00020268,2]
[381850599,1756369866224,-1510.34617617,0.00020268,2]
[381850600,1756369866235,-1637.49366838,0.00020268,2]
[381850601,1756369866245,-1500.0,0.00020268,2]
[381850602,1756369866255,-1500.0,0.00020268,2]
[381850603,1756369866265,-1500.0,0.00020268,2]
[381850604,1756369866275,-1500.0,0.00020268,2]
[381850605,1756369866285,-1500.0,0.00020268,2]
[381850606,1756369866295,-1500.0,0.00020268,2]
[381850607,1756369866305,-1500.0,0.00020268,2]
[381850608,1756369866314,-1500.0,0.00020268,2]
[381850609,1756369866324,-1500.0,0.00020268,2]
[381850610,1756369866335,-510.26063339,0.00020268,2]
[381850611,1756369866346,-1500.0,0.00020268,2]
[381850612,1756369866356,-362.42930821,0.00020268,2]
[381850613,1756369866366,-1500.0,0.00020268,2]
[381850614,1756369866375,-1500.0,0.00020268,2]
[381850615,1756369866385,-1500.0,0.00020268,2]
[381850616,1756369866395,-1500.0,0.00020268,2]
[381850617,1756369866405,-480.0,0.00020273,2]
[381850618,1756369866415,-480.0,0.00020273,2]
[381850619,1756369866427,-480.0,0.00020273,2]
[381850620,1756369866437,-480.0,0.00020273,2]
[381850621,1756369866447,-592.12934867,0.00020273,2]
[381850622,1756369866456,-480.0,0.00020273,2]
[381850623,1756369866465,-480.0,0.00020273,2]
[381850624,1756369866475,-480.0,0.00020273,2]
[381850625,1756369866485,-480.0,0.00020273,2]
[381850626,1756369866495,-480.0,0.00020273,2]
[381850627,1756369866505,-480.0,0.00020273,2]
[381850628,1756369866515,-480.0,0.00020273,2]
[381850629,1756369866525,-480.0,0.00020273,2]
[381850630,1756369866534,-480.0,0.00020273,2]
[381850631,1756369866543,-480.0,0.00020273,2]
[381850632,1756369866553,-369.44564814,0.00020273,2]
[381850633,1756369866563,-480.0,0.00020273,2]
[381850634,1756369866572,-480.0,0.00020273,2]
[381850635,1756369866582,-480.0,0.00020273,2]
[381850636,1756369866593,-480.0,0.00020273,2]
[381850637,1756369866602,-480.0,0.00020273,2]
[381850638,1756369866612,-480.0,0.00020273,2]
[381850639,1756369866621,-480.0,0.00020273,2]
[381850640,1756369866631,-623.01711509,0.00020273,2]
[381850641,1756369866640,-480.0,0.00020273,2]
[381850642,1756369866650,-480.0,0.00020273,2]
[381850643,1756369866659,-480.0,0.00020273,2]
[381850644,1756369866668,-480.0,0.00020273,2]
[381850645,1756369866678,-480.0,0.00020273,2]
[381850646,1756369866688,-480.0,0.00020273,2]
[381850647,1756369866697,-480.0,0.00020273,2]
[381850648,1756369866707,-480.0,0.00020273,2]
[381850649,1756369866717,-175.28,0.00020273,2]
[381850650,1756369866726,-480.0,0.00020273,2]
[381850651,1756369866735,-480.0,0.00020273,2]
[381850652,1756369866745,-480.0,0.00020273,2]
[381850653,1756369866754,-480.0,0.00020273,2]
[381850654,1756369866763,-480.0,0.00020273,2]
[381850655,1756369866773,-897.42,0.00020273,2]
[381850656,1756369866783,-263.05,0.00020273,2]
[381850657,1756369866792,-480.0,0.00020273,2]
[381850658,1756369866802,-656.01,0.00020273,2]
[381850659,1756369866811,-203.73,0.00020273,2]
[381850660,1756369866821,-877.58,0.00020273,2]
[381850661,1756369866830,-480.0,0.00020273,2]
[381850662,1756369866840,-480.0,0.00020273,2]
[381850663,1756369866850,-480.0,0.00020273,2]
[381850664,1756369866859,-480.0,0.00020273,2]
[381850665,1756369866869,-480.0,0.00020273,2]
[381850666,1756369866879,-480.0,0.00020273,2]
[381850667,1756369866888,-480.0,0.00020273,2]
[381850668,1756369866898,-523.27,0.00020273,2]
[381850669,1756369866907,-480.0,0.00020273,2]
[381850670,1756369866917,-480.0,0.00020273,2]
[381850671,1756369866927,-281.75811817,0.00020273,2]
[381850672,1756369866937,-480.0,0.00020273,2]
[381850673,1756369866946,-480.0,0.00020273,2]
[381850674,1756369866955,-172.95050598,0.00020273,2]
[381850675,1756369866965,-1847.47,0.00020273,2]
[381850676,1756369866975,-151.0,0.00020273,2]
[381850677,1756369866984,-628.54,0.00020273,2]
[381850678,1756369866994,-480.0,0.00020273,2]
[381850679,1756369867003,-480.0,0.00020273,2]
[381850680,1756369867013,-921.44,0.00020273,2]
[381850681,1756369867023,-500.9,0.00020273,2]
[381850682,1756369867033,-503.05,0.00020273,2]
[381850683,1756369867042,-480.0,0.00020273,2]
[381850684,1756369867052,-1031.55,0.00020273,2]
[381850685,1756369867061,-579.09,0.00020273,2]
[381850686,1756369867070,-480.0,0.00020273,2]
[381850687,1756369867080,-544.45,0.00020273,2]
[381850688,1756369867091,-543.68,0.00020273,2]
[381850689,1756369867100,-532.9,0.00020273,2]
[381850690,1756369867109,-480.0,0.00020273,2]
[381850691,1756369867118,-480.0,0.00020273,2]
[381850692,1756369867128,-480.0,0.00020273,2]
[381850693,1756369867137,-480.0,0.00020273,2]
[381850694,1756369867148,-825.91,0.00020273,2]
[381850695,1756369867157,-576.79,0.00020273,2]
[381850696,1756369867171,-480.0,0.00020273,2]
[381850697,1756369867182,-480.0,0.00020273,2]
[381850698,1756369867191,-480.0,0.00020273,2]
[381850699,1756369867201,-480.0,0.00020273,2]
[381850700,1756369867211,-506.28,0.00020273,2]
[381850701,1756369867220,-1248.09,0.00020273,2]
[381850702,1756369867230,-480.0,0.00020273,2]
[381850703,1756369867240,-508.51,0.00020273,2]
[381850704,1756369867251,-554.63,0.00020273,2]
[381850705,1756369867261,-695.44,0.00020273,2]
[381850706,1756369867270,-480.0,0.00020273,2]
[381850707,1756369867280,-480.0,0.00020273,2]
[381850708,1756369867290,-480.0,0.00020273,2]
[381850709,1756369867299,-480.0,0.00020273,2]
[381850710,1756369867309,-614.82,0.00020273,2]
[381850711,1756369867318,-480.0,0.00020273,2]
[381850712,1756369867329,-480.0,0.00020273,2]
[381850713,1756369867340,-556.57,0.00020273,2]
[381850714,1756369867351,-480.0,0.00020273,2]
[381850715,1756369867360,-480.0,0.00020273,2]
[381850716,1756369867371,-571.75,0.00020273,2]
[381850717,1756369867380,-480.0,0.00020273,2]
[381850718,1756369867390,-588.82,0.00020273,2]
[381850719,1756369867399,-480.0,0.00020273,2]
[381850720,1756369867409,-538.6,0.00020273,2]
[381850721,1756369867418,-769.13,0.00020273,2]
[381850722,1756369867427,-480.0,0.00020273,2]
[381850723,1756369867437,-695.64,0.00020273,2]
[381850724,1756369867447,-576.76,0.00020273,2]
[381850725,1756369867459,-480.0,0.00020273,2]
[381850726,1756369867469,-539.26,0.00020273,2]
[381850727,1756369867478,-480.0,0.00020273,2]
[381850728,1756369867489,-573.34,0.00020273,2]
[381850729,1756369867499,-550.16,0.00020273,2]
[381850730,1756369867508,-480.0,0.00020273,2]
[381850731,1756369867517,-1165.03,0.00020273,2]
[381850732,1756369867527,-480.0,0.00020273,2]
[381850733,1756369867536,-480.0,0.00020273,2]
[381850734,1756369867546,-480.0,0.00020273,2]
[381850735,1756369867556,-480.0,0.00020273,2]
[381850736,1756369867566,-749.53,0.00020273,2]
[381850737,1756369867575,-480.0,0.00020273,2]
[381850738,1756369867584,-480.0,0.00020273,2]
[381850739,1756369867596,-480.0,0.00020273,2]
[381850740,1756369867606,-480.0,0.00020273,2]
[381850741,1756369867615,-480.0,0.00020273,2]
[381850742,1756369867625,-482.67213805,0.00020273,2]
[381850743,1756369867635,-480.0,0.00020273,2]
[381850744,1756369867644,-806.49,0.00020273,2]
[381850745,1756369867654,-888.44,0.00020273,2]
[381850746,1756369867663,-698.66,0.00020273,2]
[381850747,1756369867672,-480.0,0.00020273,2]
[381850748,1756369867682,-687.89,0.00020273,2]
[381850749,1756369867691,-480.0,0.00020273,2]
[381850750,1756369867701,-480.0,0.00020273,2]
[381850751,1756369867710,-874.71,0.00020273,2]
[381850752,1756369867719,-849.89,0.00020273,2]
[381850753,1756369867728,-480.0,0.00020273,2]
[381850754,1756369867738,-480.0,0.00020273,2]
[381850755,1756369867747,-516.1,0.00020273,2]
[381850756,1756369867756,-480.0,0.00020273,2]
[381850757,1756369867765,-480.0,0.00020273,2]
[381850758,1756369867775,-499.56,0.00020273,2]
[381850759,1756369867784,-480.0,0.00020273,2]
[381850760,1756369867794,-480.0,0.00020273,2]
[381850761,1756369867803,-480.0,0.00020273,2]
[381850762,1756369867813,-480.0,0.00020273,2]
[381850763,1756369867823,-2212.49,0.00020273,2]
[381850764,1756369867832,-480.0,0.00020273,2]
[381850765,1756369867889,-480.0,0.00020273,2]
[381850766,1756369867898,-480.0,0.00020273,2]
[381850767,1756369867908,-480.0,0.00020273,2]
[381850768,1756369867918,-896.97,0.00020273,2]
[381850769,1756369867928,-521.94,0.00020273,2]
[381850770,1756369867937,-480.0,0.00020273,2]
[381850771,1756369867946,-599.08,0.00020273,2]
[381850772,1756369867955,-480.0,0.00020273,2]
[381850773,1756369867965,-480.0,0.00020273,2]
[381850774,1756369867975,-480.0,0.00020273,2]
[381850775,1756369867984,-1061.62,0.00020273,2]
[381850776,1756369867993,-1699.99,0.00020273,2]
[381850777,1756369868003,-722.02,0.00020273,2]
[381850778,1756369868012,-480.0,0.00020273,2]
[381850779,1756369868022,-480.0,0.00020273,2]
[381850780,1756369868031,-480.0,0.00020273,2]
[381850781,1756369868041,-480.0,0.00020273,2]
[381850782,1756369868050,-480.0,0.00020273,2]
[381850783,1756369868059,-560.04,0.00020273,2]
[381850784,1756369868068,-569.45,0.00020273,2]
[381850785,1756369868078,-480.0,0.00020273,2]
[381850786,1756369868090,-480.0,0.00020273,2]
[381850787,1756369868100,-480.0,0.00020273,2]
[381850788,1756369868109,-480.0,0.00020273,2]
[381850789,1756369868118,-480.0,0.00020273,2]
[381850790,1756369868128,-480.0,0.00020273,2]
[381850791,1756369868136,-480.0,0.00020273,2]
[381850792,1756369868158,-5450.16,0.00020273,2]
[381850793,1756369868172,-3487.18,0.00020273,2]
[381850794,1756369868182,-480.0,0.00020273,2]
[381850795,1756369868192,-480.0,0.00020273,2]
[381850796,1756369868203,-480.0,0.00020273,2]
[381850797,1756369868212,-480.0,0.00020273,2]
[381850798,1756369868222,-605.66,0.00020273,2]
[381850799,1756369868231,-741.72,0.00020273,2]
[381850800,1756369868242,-480.0,0.00020273,2]
[381850801,1756369868252,-480.0,0.00020273,2]
[381850802,1756369868261,-480.0,0.00020273,2]
[381850803,1756369868271,-480.0,0.00020273,2]
[381850804,1756369868280,-480.0,0.00020273,2]
[381850805,1756369868289,-950.41,0.00020273,2]
[381850806,1756369868298,-575.9,0.00020273,2]
[381850807,1756369868308,-480.0,0.00020273,2]
[381850808,1756369868318,-549.72,0.00020273,2]
[381850809,1756369868328,-574.62,0.00020273,2]
[381850810,1756369868339,-524.97,0.00020273,2]
[381850811,1756369868349,-480.0,0.00020273,2]
[381850812,1756369868358,-480.0,0.00020273,2]
[381850813,1756369868368,-480.0,0.00020273,2]
[381850814,1756369868377,-1415.71,0.00020273,2]
[381850815,1756369868387,-992.06,0.00020273,2]
[381850816,1756369868396,-1324.57,0.00020273,2]
[381850817,1756369868406,-480.0,0.00020273,2]
[381850818,1756369868415,-714.49,0.00020273,2]
[381850819,1756369868425,-480.0,0.00020273,2]
[381850820,1756369868434,-602.06924754,0.00020273,2]
[381850821,1756369868443,-503.74,0.00020273,2]
[381850822,1756369868453,-480.0,0.00020273,2]
[381850823,1756369868462,-712.39,0.00020273,2]
[381850824,1756369868471,-585.11,0.00020273,2]
[381850825,1756369868481,-279.25517091,0.00020273,2]
[381850826,1756369868490,-690.84,0.00020273,2]
[381850827,1756369868499,-507.94,0.00020273,2]
[381850828,1756369868508,-630.11,0.00020273,2]
[381850829,1756369868517,-1258.99,0.00020273,2]
[381850830,1756369868526,-1977.34,0.00020273,2]
[381850831,1756369868535,-480.0,0.00020273,2]
[381850832,1756369868544,-480.0,0.00020273,2]
[381850833,1756369868553,-1590.08,0.00020273,2]
[381850834,1756369868562,-783.1,0.00020273,2]
[381850835,1756369868571,-480.0,0.00020273,2]
[381850836,1756369868581,-480.0,0.00020273,2]
[381850837,1756369868591,-569.32,0.00020273,2]
[381850838,1756369868601,-497.76,0.00020273,2]
[381850839,1756369868611,-564.63028461,0.00020273,2]
[381850840,1756369868620,-536.6,0.00020273,2]
[381850841,1756369868629,-480.0,0.00020273,2]
[381850842,1756369868639,-3639.12,0.00020273,2]
[381850843,1756369868648,-2302.03,0.00020273,2]
[381850844,1756369868657,-480.0,0.00020273,2]
[381850845,1756369868666,-937.68,0.00020273,2]
[381850846,1756369868675,-480.0,0.00020273,2]
[381850847,1756369868684,-480.0,0.00020273,2]
[381850848,1756369868693,-480.0,0.00020273,2]
[381850849,1756369868702,-480.0,0.00020273,2]
[381850850,1756369868711,-1299.04,0.00020273,2]
[381850851,1756369868721,-480.0,0.00020273,2]
[381850852,1756369868731,-480.0,0.00020273,2]
[381850853,1756369868741,-2787.17,0.00020273,2]
[381850854,1756369868750,-601.8,0.00020273,2]
[381850855,1756369868760,-480.0,0.00020273,2]
[381850856,1756369868769,-480.0,0.00020273,2]
[381850857,1756369868778,-480.0,0.00020273,2]
[381850858,1756369868787,-646.69,0.00020273,2]
[381850859,1756369868796,-480.0,0.00020273,2]
[381850860,1756369868805,-521.5,0.00020273,2]
[381850861,1756369868815,-720.67,0.00020273,2]
[381850862,1756369868824,-801.85,0.00020273,2]
[381850863,1756369868833,-1184.7,0.00020273,2]
[381850864,1756369868843,-480.0,0.00020273,2]
[381850865,1756369868852,-480.0,0.00020273,2]
[381850866,1756369868862,-480.0,0.00020273,2]
[381850867,1756369868871,-1099.3,0.00020273,2]
[381850868,1756369868880,-427.453462,0.00020273,2]
[381850869,1756369868897,-823.8,0.00020273,2]
[381850870,1756369868908,-1037.86,0.00020273,2]
[381850871,1756369868917,-427.453462,0.00020273,2]
[381850872,1756369868927,-427.453462,0.00020273,2]
[381850873,1756369868936,-427.453462,0.00020273,2]
[381850874,1756369868945,-2340.76,0.00020273,2]
[381850875,1756369868954,-493.89,0.00020273,2]
[381850876,1756369868963,-588.46,0.00020273,2]
[381850877,1756369868972,-480.0,0.00020273,2]
[381850878,1756369868982,-501.59,0.00020273,2]
[381850879,1756369868992,-480.0,0.00020273,2]
[381850880,1756369869001,-2673.67,0.00020273,2]
[381850881,1756369869011,-480.0,0.00020273,2]
[381850882,1756369869020,-480.0,0.00020273,2]
[381850883,1756369869029,-2237.24,0.00020273,2]
[381850884,1756369869038,-480.0,0.00020273,2]
[381850885,1756369869047,-480.0,0.00020273,2]
[381850886,1756369869056,-480.0,0.00020273,2]
[381850887,1756369869065,-2886.17,0.00020273,2]
[381850888,1756369869075,-1118.68,0.00020273,2]
[381850889,1756369869084,-535.01,0.00020273,2]
[381850890,1756369869094,-480.0,0.00020273,2]
[381850891,1756369869103,-500.86,0.00020273,2]
[381850892,1756369869112,-1858.1,0.00020273,2]
[381850893,1756369869122,-480.0,0.00020273,2]
[381850894,1756369869131,-480.0,0.00020273,2]
[381850895,1756369869140,-480.0,0.00020273,2]
[381850896,1756369869149,-480.0,0.00020273,2]
[381850897,1756369869159,-559.36,0.00020273,2]
[381850898,1756369869172,-480.0,0.00020273,2]
[381850899,1756369869182,-480.0,0.00020273,2]
[381850900,1756369869191,-607.48,0.00020273,2]
[381850901,1756369869201,-480.0,0.00020273,2]
[381850902,1756369869210,-151.0,0.00020273,2]
[381850903,1756369869219,-1435.35,0.00020273,2]
[381850904,1756369869228,-480.0,0.00020273,2]
[381850905,1756369869237,-4445.92,0.00020273,2]
[381850906,1756369869247,-1600.64,0.00020273,2]
[381850907,1756369869256,-1940.27,0.00020273,2]
[381850908,1756369869265,-480.0,0.00020273,2]
[381850909,1756369869274,-480.0,0.00020273,2]
[381850910,1756369869284,-480.0,0.00020273,2]
[381850911,1756369869295,-855.72,0.00020273,2]
[381850912,1756369869306,-480.0,0.00020273,2]
[381850913,1756369869317,-480.0,0.00020273,2]
[381850914,1756369869330,-480.0,0.00020273,2]
[381850915,1756369869340,-3294.94,0.00020273,2]
[381850916,1756369869350,-482.0082733,0.00020273,2]
[381850917,1756369869361,-682.6,0.00020273,2]
[381850918,1756369869371,-480.0,0.00020273,2]
[381850919,1756369869382,-633.27,0.00020273,2]
[381850920,1756369869392,-3115.0,0.00020273,2]
[381850921,1756369869401,-480.0,0.00020273,2]
[381850922,1756369869411,-782.98,0.00020273,2]
[381850923,1756369869420,-1357.7,0.00020273,2]
[381850924,1756369869430,-556.8,0.00020273,2]
[381850925,1756369869439,-348.22120734,0.00020273,2]
[381850926,1756369869449,-480.0,0.00020273,2]
[381850927,1756369869458,-712.32,0.00020273,2]
[381850928,1756369869468,-480.0,0.00020273,2]
[381850929,1756369869477,-549.72,0.00020273,2]
[381850930,1756369869487,-1967.5,0.00020273,2]
[381850931,1756369869497,-480.0,0.00020273,2]
[381850932,1756369869506,-587.08,0.00020273,2]
[381850933,1756369869518,-3130.05,0.00020273,2]
[381850934,1756369869541,-480.0,0.00020273,2]
[381850935,1756369869551,-480.0,0.00020273,2]
[381850936,1756369869560,-480.0,0.00020273,2]
[381850937,1756369869570,-633.66,0.00020273,2]
[381850938,1756369869579,-480.0,0.00020273,2]
[381850939,1756369869589,-480.0,0.00020273,2]
[381850940,1756369869601,-6716.97,0.00020273,2]
[381850941,1756369869611,-480.0,0.00020273,2]
[381850942,1756369869620,-3141.73,0.00020273,2]
[381850943,1756369869630,-793.51,0.00020273,2]
[381850944,1756369869639,-796.35,0.00020273,2]
[381850945,1756369869649,-877.36,0.00020273,2]
[381850946,1756369869658,-480.0,0.00020273,2]
[381850947,1756369869668,-4196.5,0.00020273,2]
[381850948,1756369869678,-1065.94,0.00020273,2]
[381850949,1756369869688,-480.0,0.00020273,2]
[381850950,1756369869698,-480.0,0.00020273,2]
[381850951,1756369869707,-480.0,0.00020273,2]
[381850952,1756369869717,-151.0,0.00020274,2]
[381850953,1756369869727,-151.0,0.00020274,2]
[381850954,1756369869736,-151.0,0.00020274,2]
[381850955,1756369869745,-500.0,0.00020274,2]
[381850956,1756369869755,-151.0,0.00020274,2]
[381850957,1756369869764,-500.0,0.00020274,2]
[381850958,1756369869774,-151.0,0.00020274,2]
[381850959,1756369869783,-151.84287492,0.00020274,2]
[381850960,1756369869793,-151.0,0.00020274,2]
[381850961,1756369869803,-1163.0,0.00020274,2]
[381850962,1756369869813,-151.0,0.00020274,2]
[381850963,1756369869823,-151.0,0.00020274,2]
[381850964,1756369869833,-500.0,0.00020274,2]
[381850965,1756369869843,-151.0,0.00020274,2]
[381850966,1756369869853,-151.0,0.00020274,2]
[381850967,1756369869863,-151.0,0.00020274,2]
[381850968,1756369869872,-151.0,0.00020274,2]
[381850969,1756369869882,-151.0,0.00020274,2]
[381850970,1756369869891,-500.0,0.00020274,2]
[381850971,1756369869901,-500.0,0.00020274,2]
[381850972,1756369869911,-500.0,0.00020274,2]
[381850973,1756369869920,-151.0,0.00020274,2]
[381850974,1756369869930,-542.0071354,0.00020274,2]
[381850975,1756369869940,-151.0,0.00020274,2]
[381850976,1756369869949,-151.0,0.00020274,2]
[381850977,1756369869959,-1000.0,0.00020321,2]
[381850978,1756369869968,-759.16286579,0.00020321,2]
[381850979,1756369869978,-294.72586856,0.00020321,2]
[381850980,1756369869988,-1000.0,0.00020321,2]
[381850981,1756369869997,-1000.0,0.00020321,2]
[381850982,1756369870007,-1000.0,0.00020321,2]
[381850983,1756369870017,-284.17997351,0.00020321,2]
[381850984,1756369870026,-1000.0,0.00020321,2]
[381850985,1756369870036,-1014.45769331,0.00020321,2]
[381850986,1756369870045,-1680.0,0.00020341,2]
[381850987,1756369870055,-420.0,0.00020341,2]
[381850988,1756369870065,-151.0,0.000204,4]
[381850989,1756369870075,-150.0,0.000204,2]
[381850990,1756369870085,-1391.0,0.0002044,2]
[381850991,1756369870096,-3389.54824217,0.000205,2]
[381850992,1756369870106,-168.0,0.00020512,2]
[381850993,1756369870116,-194.72792766,0.00020535,2]
[381850994,1756369870125,-480.0,0.00020547,2]
[381850995,1756369870138,-480.0,0.00020547,2]
[381850996,1756369870148,-480.0,0.00020547,2]
[381850997,1756369870160,-480.0,0.00020547,2]
[381850998,1756369870175,-480.0,0.00020547,2]
[381850999,1756369870185,-480.0,0.00020547,2]
[381851000,1756369870195,-480.0,0.00020547,2]
[381851001,1756369870205,-480.0,0.00020547,2]
[381851002,1756369870216,-480.0,0.00020547,2]
[381851003,1756369870225,-480.0,0.00020547,2]
[381851004,1756369870235,-480.0,0.00020547,2]
[381851005,1756369870245,-480.0,0.00020547,2]
[381851006,1756369870255,-480.0,0.00020547,2]
[381851007,1756369870264,-480.0,0.00020547,2]
[381851008,1756369870274,-480.0,0.00020547,2]
[381851009,1756369870284,-480.0,0.00020547,2]
[381851010,1756369870294,-480.0,0.00020547,2]
[381851011,1756369870304,-480.0,0.00020547,2]
[381851012,1756369870313,-290.48538482,0.00020547,2]
[381851013,1756369870323,-480.0,0.00020547,2]
[381851014,1756369870333,-480.0,0.00020547,2]
[381851015,1756369870342,-480.0,0.00020547,2]
[381851016,1756369870352,-468.88772611,0.00020547,2]
[381851017,1756369870361,-629.0815396,0.00020547,2]
[381851018,1756369870371,-480.0,0.00020547,2]
[381851019,1756369870381,-480.0,0.00020547,2]
[381851020,1756369870390,-523.82145266,0.00020547,2]
[381851021,1756369870400,-480.0,0.00020547,2]
[381851022,1756369870409,-480.0,0.00020547,2]
[381851023,1756369870419,-215.96,0.00020547,2]
[381851024,1756369870429,-480.0,0.00020547,2]
[381851025,1756369870439,-480.0,0.00020547,2]
[381851026,1756369870449,-480.0,0.00020547,2]
[381851027,1756369870458,-480.0,0.00020547,2]
[381851028,1756369870468,-897.42,0.00020547,2]
[381851029,1756369870477,-480.0,0.00020547,2]
[381851030,1756369870487,-656.01,0.00020547,2]
[381851031,1756369870496,-877.58,0.00020547,2]
[381851032,1756369870506,-480.0,0.00020547,2]
[381851033,1756369870516,-480.0,0.00020547,2]
[381851034,1756369870525,-480.0,0.00020547,2]
[381851035,1756369870535,-480.0,0.00020547,2]
[381851036,1756369870544,-480.0,0.00020547,2]
[381851037,1756369870553,-480.0,0.00020547,2]
[381851038,1756369870563,-480.0,0.00020547,2]
[381851039,1756369870572,-523.27,0.00020547,2]
[381851040,1756369870582,-480.0,0.00020547,2]
[381851041,1756369870592,-480.0,0.00020547,2]
[381851042,1756369870602,-480.0,0.00020547,2]
[381851043,1756369870612,-1847.47,0.00020547,2]
[381851044,1756369870622,-628.54,0.00020547,2]
[381851045,1756369870632,-480.0,0.00020547,2]
[381851046,1756369870641,-480.0,0.00020547,2]
[381851047,1756369870651,-921.44,0.00020547,2]
[381851048,1756369870660,-500.9,0.00020547,2]
[381851049,1756369870670,-480.0,0.00020547,2]
[381851050,1756369870679,-1031.55,0.00020547,2]
[381851051,1756369870688,-480.0,0.00020547,2]
[381851052,1756369870698,-543.68,0.00020547,2]
[381851053,1756369870707,-532.9,0.00020547,2]
[381851054,1756369870716,-480.0,0.00020547,2]
[381851055,1756369870725,-480.0,0.00020547,2]
[381851056,1756369870735,-480.0,0.00020547,2]
[381851057,1756369870744,-480.0,0.00020547,2]
[381851058,1756369870754,-825.91,0.00020547,2]
[381851059,1756369870764,-576.79,0.00020547,2]
[381851060,1756369870774,-480.0,0.00020547,2]
[381851061,1756369870784,-480.0,0.00020547,2]
[381851062,1756369870794,-480.0,0.00020547,2]
[381851063,1756369870804,-480.0,0.00020547,2]
[381851064,1756369870814,-506.28,0.00020547,2]
[381851065,1756369870824,-1248.09,0.00020547,2]
[381851066,1756369870834,-480.0,0.00020547,2]
[381851067,1756369870844,-508.51,0.00020547,2]
[381851068,1756369870855,-554.63,0.00020547,2]
[381851069,1756369870865,-695.44,0.00020547,2]
[381851070,1756369870874,-480.0,0.00020547,2]
[381851071,1756369870884,-227.79474591,0.00020547,2]
[381851072,1756369870893,-480.0,0.00020547,2]
[381851073,1756369870903,-480.0,0.00020547,2]
[381851074,1756369870912,-614.82,0.00020547,2]
[381851075,1756369870922,-480.0,0.00020547,2]
[381851076,1756369870931,-480.0,0.00020547,2]
[381851077,1756369870941,-556.57,0.00020547,2]
[381851078,1756369870950,-480.0,0.00020547,2]
[381851079,1756369870960,-480.0,0.00020547,2]
[381851080,1756369870969,-571.75,0.00020547,2]
[381851081,1756369870979,-480.0,0.00020547,2]
[381851082,1756369870988,-588.82,0.00020547,2]
[381851083,1756369870997,-480.0,0.00020547,2]
[381851084,1756369871007,-538.6,0.00020547,2]
[381851085,1756369871017,-769.13,0.00020547,2]
[381851086,1756369871027,-480.0,0.00020547,2]
[381851087,1756369871037,-695.64,0.00020547,2]
[381851088,1756369871046,-576.76,0.00020547,2]
[381851089,1756369871056,-480.0,0.00020547,2]
[381851090,1756369871065,-539.26,0.00020547,2]
[381851091,1756369871074,-480.0,0.00020547,2]
[381851092,1756369871084,-573.34,0.00020547,2]
[381851093,1756369871094,-550.16,0.00020547,2]
[381851094,1756369871104,-480.0,0.00020547,2]
[381851095,1756369871114,-1165.03,0.00020547,2]